fUST/lending_fUST_20251222
["ID","MTS","AMOUNT","RATE_DAILY","PERIOD"]
[399417219,1766336034413,500.0,8.719e-05,2]
[399417220,1766336034451,500.0,8.719e-05,2]
[399417221,1766336034483,500.0,8.719e-05,2]
[399417222,1766336034516,500.0,8.719e-05,2]
[399417223,1766336034545,151.98293674,8.719e-05,2]
[399417224,1766336034568,348.01706326,8.719e-05,2]
[399417225,1766336034597,500.0,8.719e-05,2]
[399417226,1766336034666,500.0,8.719e-05,2]
[399417227,1766336034699,500.0,8.719e-05,2]
[399417228,1766336034730,500.0,8.719e-05,2]
[399417229,1766336034760,500.0,8.719e-05,2]
[399417230,1766336034791,500.0,8.719e-05,2]
[399417232,1766336043272,275.0,8.826e-05,2]
[399417234,1766336058507,-150.0,0.00010697,7]
[399417235,1766336060564,-150.0,0.00010697,7]
[399417236,1766336061708,-150.0,0.00010697,7]
[399417237,1766336063130,-10.68267127,0.00010697,7]
[399417238,1766336063153,-139.31732873,0.00011879,7]
[399417239,1766336071662,-150.0,0.00011879,7]
[399417261,1766336110039,150.0,8.378e-05,2]
[399417263,1766336111328,169.905749,4.278e-05,2]
[399417264,1766336111538,169.905749,8.556e-05,2]
[399417270,1766336159652,-263.35,8.777e-05,2]
[399417271,1766336159682,-300.0,8.825e-05,2]
[399417272,1766336159710,-300.0,8.825e-05,2]
[399417273,1766336159741,-300.0,8.825e-05,2]
[399417274,1766336159771,-1200.0,8.825e-05,2]
[399417276,1766336175973,-3761.65650761,8.826e-05,2]
[399417277,1766336191486,150.0,8.576e-05,2]
[399417279,1766336207659,500.0,0.00032877,60]
[399417280,1766336207844,-500.0,8.825e-05,2]
[399417281,1766336207873,-257.9907613,8.825e-05,2]
[399417282,1766336207902,-500.0,8.825e-05,2]
[399417283,1766336207931,-500.0,8.825e-05,2]
[399417284,1766336207959,-500.0,8.825e-05,2]
[399417285,1766336207988,-474.8905475,8.825e-05,2]
[399417286,1766336208018,-1992.59034115,8.825e-05,2]
[399417287,1766336208047,-36.14294321,8.825e-05,2]
[399417290,1766336220821,-476.78081368,8.825e-05,2]
[399417291,1766336220852,-500.0,8.825e-05,2]
[399417292,1766336220882,-500.0,8.825e-05,2]
[399417293,1766336220911,-500.0,8.825e-05,2]
[399417294,1766336220941,-1992.59034115,8.825e-05,2]
[399417295,1766336220970,-68.67734919,8.825e-05,2]
[399417296,1766336221061,-1923.91299196,8.825e-05,2]
[399417297,1766336221092,-500.0,8.825e-05,2]
[399417298,1766336221122,-500.0,8.825e-05,2]
[399417299,1766336221150,-1992.59034115,8.825e-05,2]
[399417301,1766336234651,-500.0,8.825e-05,2]
[399417302,1766336234678,-1992.59034115,8.825e-05,2]
[399417303,1766336234706,-500.0,8.825e-05,2]
[399417304,1766336234746,-502.9867138,8.825e-05,2]
[399417305,1766336234780,-500.0,8.825e-05,2]
[399417306,1766336234811,-16.26554895,8.825e-05,2]
[399417307,1766336262883,4245.77060814,8.702e-05,2]
[399417308,1766336263535,-1976.3247922,8.825e-05,2]
[399417309,1766336263563,-1992.59034115,8.825e-05,2]
[399417310,1766336263595,-500.0,8.825e-05,2]
[399417311,1766336263624,-500.0,8.825e-05,2]
[399417312,1766336275555,150.0,8.338e-05,2]
[399417316,1766336286770,764.01,8.702e-05,2]
[399417317,1766336310632,-271.69,8.735e-05,2]
[399417318,1766336310661,-391.35737157,8.78e-05,2]
[399417319,1766336310690,-1992.59034115,8.825e-05,2]
[399417320,1766336310718,-500.0,8.825e-05,2]
[399417321,1766336310747,-1696.14423341,8.825e-05,2]
[399417322,1766336310961,-296.44610774,8.825e-05,2]
[399417323,1766336310991,-637.383317,8.825e-05,2]
[399417324,1766336311019,-500.0,8.825e-05,2]
[399417325,1766336311048,-1992.59034115,8.825e-05,2]
[399417326,1766336311079,-1154.58012707,8.825e-05,2]
[399417328,1766336348625,-237.48703522,8.824e-05,2]
[399417329,1766336348655,-2226.36081941,8.824e-05,2]
[399417330,1766336348684,-500.0,8.824e-05,2]
[399417331,1766336348713,-1845.95347133,8.824e-05,2]
[399417332,1766336357607,150.0,8.647e-05,2]
[399417336,1766336362241,-380.40734808,8.824e-05,2]
[399417337,1766336362279,-2226.36081941,8.824e-05,2]
[399417338,1766336362315,-500.0,8.824e-05,2]
[399417339,1766336362352,-1560.11284561,8.824e-05,2]
[399417347,1766336441614,150.0,7.962e-05,2]
[399417348,1766336441666,257.13,8.341e-05,2]
[399417354,1766336466662,189.99995999,0.00032877,60]
[399417357,1766336527061,150.0,7.888e-05,2]
[399417358,1766336527773,246.77,8.264e-05,2]
[399417359,1766336528218,370.15,8.64e-05,2]
[399417360,1766336530260,3161.0,0.0003287,60]
[399417366,1766336615442,150.0,7.935e-05,2]
[399417367,1766336615895,227.25,8.313e-05,2]
[399417368,1766336616310,340.87,8.691e-05,2]
[399417373,1766336698105,150.0,7.946e-05,2]
[399417374,1766336698531,208.97,8.325e-05,2]
[399417382,1766336781615,150.0,7.973e-05,2]
[399417383,1766336781995,199.83,8.353e-05,2]
[399417391,1766336861758,150.0,8.326e-05,2]
[399417395,1766336943704,150.0,8.273e-05,2]
[399417396,1766336944154,187.11,8.667e-05,2]
[399417435,1766337032489,-8891.02650953,8.72e-05,2]
[399417442,1766337032544,-70824.36604085,8.72e-05,2]
[399417444,1766337032554,-542.0,8.72e-05,2]
[399417446,1766337032565,-50000.0,8.819e-05,2]
[399417448,1766337032575,-383.53022413,8.819e-05,2]
[399417450,1766337032584,-500.0,8.819e-05,2]
[399417452,1766337032594,-500.0,8.819e-05,2]
[399417454,1766337032603,-500.0,8.819e-05,2]
[399417456,1766337032613,-500.0,8.819e-05,2]
[399417457,1766337032622,-500.0,8.819e-05,2]
[399417459,1766337032632,-500.0,8.819e-05,2]
[399417462,1766337032641,-500.0,8.819e-05,2]
[399417464,1766337032650,-500.0,8.819e-05,2]
[399417466,1766337032660,-500.0,8.819e-05,2]
[399417467,1766337032669,-323.85315516,8.819e-05,2]
[399417469,1766337032678,-500.0,8.819e-05,2]
[399417471,1766337032688,-500.0,8.819e-05,2]
[399417473,1766337032697,-500.0,8.819e-05,2]
[399417475,1766337032706,-500.0,8.819e-05,2]
[399417477,1766337032715,-500.0,8.819e-05,2]
[399417479,1766337032725,-500.0,8.819e-05,2]
[399417481,1766337032734,-500.0,8.819e-05,2]
[399417483,1766337032743,-500.0,8.819e-05,2]
[399417485,1766337032752,-650.0,8.819e-05,2]
[399417487,1766337032762,-500.0,8.819e-05,2]
[399417489,1766337032777,-500.0,8.819e-05,2]
[399417491,1766337032787,-500.0,8.819e-05,2]
[399417493,1766337032796,-500.0,8.819e-05,2]
[399417495,1766337032807,-500.0,8.819e-05,2]
[399417497,1766337032817,-500.0,8.819e-05,2]
[399417500,1766337032826,-500.0,8.819e-05,2]
[399417503,1766337032848,-500.0,8.819e-05,2]
[399417505,1766337032857,-500.0,8.819e-05,2]
[399417507,1766337032867,-500.0,8.819e-05,2]
[399417509,1766337032877,-500.0,8.819e-05,2]
[399417511,1766337032887,-500.0,8.819e-05,2]
[399417513,1766337032896,-500.0,8.819e-05,2]
[399417515,1766337032905,-500.0,8.819e-05,2]
[399417517,1766337032915,-500.0,8.819e-05,2]
[399417519,1766337032924,-500.0,8.819e-05,2]
[399417521,1766337032934,-500.0,8.819e-05,2]
[399417523,1766337032943,-500.0,8.819e-05,2]
[399417525,1766337032954,-3093.10873638,8.819e-05,2]
[399417527,1766337032963,-3093.10873638,8.819e-05,2]
[399417529,1766337032973,-3093.10873638,8.819e-05,2]
[399417531,1766337032982,-3093.10873638,8.819e-05,2]
[399417532,1766337032994,-3093.10873638,8.819e-05,2]
[399417534,1766337033004,-3093.10873638,8.819e-05,2]
[399417536,1766337033014,-3093.10873638,8.819e-05,2]
[399417538,1766337033023,-3093.10873638,8.819e-05,2]
[399417540,1766337033033,-3093.10873638,8.819e-05,2]
[399417542,1766337033043,-3093.10873638,8.819e-05,2]
[399417544,1766337033052,-3093.10873638,8.819e-05,2]
[399417546,1766337033062,-3093.10873638,8.819e-05,2]
[399417548,1766337033071,-3093.10873638,8.819e-05,2]
[399417549,1766337033081,-3093.10873638,8.819e-05,2]
[399417550,1766337033091,-3093.10873638,8.819e-05,2]
[399417551,1766337033100,-3093.10873638,8.819e-05,2]
[399417552,1766337033110,-3093.10873638,8.819e-05,2]
[399417553,1766337033119,-3093.10873638,8.819e-05,2]
[399417554,1766337033129,-3093.10873638,8.819e-05,2]
[399417555,1766337033139,-3093.10873638,8.819e-05,2]
[399417556,1766337033149,-3093.10873638,8.819e-05,2]
[399417557,1766337033158,-3093.10873638,8.819e-05,2]
[399417558,1766337033168,-3093.10873638,8.819e-05,2]
[399417559,1766337033178,-3093.10873638,8.819e-05,2]
[399417560,1766337033188,-3093.10873638,8.819e-05,2]
[399417561,1766337033197,-3093.10873638,8.819e-05,2]
[399417562,1766337033211,-3093.10873638,8.819e-05,2]
[399417563,1766337033222,-3093.10873638,8.819e-05,2]
[399417564,1766337033232,-3093.10873638,8.819e-05,2]
[399417565,1766337033241,-3093.10873638,8.819e-05,2]
[399417566,1766337033252,-3093.10873638,8.819e-05,2]
[399417567,1766337033263,-3093.10873638,8.819e-05,2]
[399417568,1766337033272,-3093.10873638,8.819e-05,2]
[399417569,1766337033282,-3093.10873638,8.819e-05,2]
[399417570,1766337033293,-3093.10873638,8.819e-05,2]
[399417571,1766337033304,-3093.10873638,8.819e-05,2]
[399417572,1766337033314,-3093.10873638,8.819e-05,2]
[399417573,1766337033325,-3093.10873638,8.819e-05,2]
[399417574,1766337033335,-3093.10873638,8.819e-05,2]
[399417575,1766337033345,-3093.10873638,8.819e-05,2]
[399417576,1766337033355,-3093.10873638,8.819e-05,2]
[399417577,1766337033365,-3093.10873638,8.819e-05,2]
[399417578,1766337033376,-3093.10873638,8.819e-05,2]
[399417579,1766337033386,-3093.10873638,8.819e-05,2]
[399417580,1766337033396,-3093.10873638,8.819e-05,2]
[399417581,1766337033406,-3093.10873638,8.819e-05,2]
[399417582,1766337033416,-3093.10873638,8.819e-05,2]
[399417583,1766337033427,-3093.10873638,8.819e-05,2]
[399417584,1766337033437,-3093.10873638,8.819e-05,2]
[399417585,1766337033447,-3093.10873638,8.819e-05,2]
[399417586,1766337033457,-3093.10873639,8.819e-05,2]
[399417587,1766337033466,-3093.10873639,8.819e-05,2]
[399417588,1766337033476,-3093.10873639,8.819e-05,2]
[399417589,1766337033486,-3093.10873639,8.819e-05,2]
[399417590,1766337033496,-3093.10873639,8.819e-05,2]
[399417591,1766337033506,-3093.10873639,8.819e-05,2]
[399417592,1766337033516,-3093.10873638,8.819e-05,2]
[399417593,1766337033526,-5486.02219086,8.82e-05,2]
[399417594,1766337033535,-288.06228169,8.821e-05,2]
[399417595,1766337033546,-151.0,8.821e-05,2]
[399417596,1766337033556,-151.0,8.821e-05,2]
[399417597,1766337033566,-151.0,8.821e-05,2]
[399417598,1766337033575,-151.0,8.821e-05,2]
[399417599,1766337033585,-151.0,8.821e-05,2]
[399417600,1766337033595,-151.0,8.821e-05,2]
[399417601,1766337033606,-151.0,8.821e-05,2]
[399417602,1766337033616,-151.0,8.821e-05,2]
[399417603,1766337033626,-151.0,8.821e-05,2]
[399417604,1766337033635,-215.830514,8.821e-05,2]
[399417605,1766337033646,-500.0,8.824e-05,2]
[399417606,1766337033657,-321.49765174,8.824e-05,2]
[399417607,1766337033667,-574.12855637,8.834e-05,2]
[399417608,1766337033678,-1153.81875418,8.834e-05,2]
[399417609,1766337033688,-300.0,9e-05,2]
[399417610,1766337033698,-300.0,9e-05,2]
[399417611,1766337033709,-300.0,9e-05,2]
[399417612,1766337033719,-300.0,9e-05,2]
[399417613,1766337033734,-300.0,9e-05,2]
[399417614,1766337033744,-300.0,9e-05,2]
[399417615,1766337033754,-300.0,9e-05,2]
[399417616,1766337033768,-300.0,9e-05,2]
[399417617,1766337033778,-300.0,9e-05,2]
[399417618,1766337033789,-300.0,9e-05,2]
[399417619,1766337033798,-300.0,9e-05,2]
[399417620,1766337033810,-300.0,9e-05,2]
[399417621,1766337033821,-300.0,9e-05,2]
[399417622,1766337033831,-300.0,9e-05,2]
[399417623,1766337033841,-300.0,9e-05,2]
[399417624,1766337033854,-2160.0,9.194e-05,2]
[399417625,1766337033864,-1362.0,9.194e-05,2]
[399417626,1766337033874,-633.0,9.194e-05,2]
[399417627,1766337033883,-415.0,9.229e-05,2]
[399417628,1766337033893,-415.0,9.229e-05,2]
[399417629,1766337033904,-218.592,9.335e-05,2]
[399417630,1766337033913,-237.925,9.36e-05,2]
[399417631,1766337033924,-250.0,9.36e-05,2]
[399417632,1766337033934,-266.632,9.36e-05,2]
[399417633,1766337033944,-595.37131296,9.382e-05,2]
[399417634,1766337033954,-5486.02219085,9.409e-05,2]
[399417635,1766337033964,-600.0,9.765e-05,2]
[399417636,1766337033974,-6345.85159539,9.765e-05,2]
[399417637,1766337033984,-352.81974288,9.93e-05,2]
[399417638,1766337033996,-5486.02219085,9.999e-05,2]
[399417639,1766337034006,-774.0,0.000101,2]
[399417640,1766337034017,-349.40000453,0.00010152,2]
[399417641,1766337034027,-399.31429089,0.00010425,2]
[399417642,1766337034036,-5486.02219085,0.00010488,2]
[399417643,1766337034046,-40242.4999999,0.00010733,2]
[399417644,1766337034058,-720.0,0.00010742,2]
[399417645,1766337034068,-452.56566448,0.00010819,2]
[399417646,1766337034078,-684.7229129,0.00010959,2]
[399417647,1766337034090,-466.46910641,0.00010982,2]
[399417648,1766337034100,-5486.02219085,0.00011077,2]
[399417649,1766337034111,-151.0,0.000111,2]
[399417650,1766337034121,-151.0,0.000111,2]
[399417651,1766337034132,-178.733,0.00011177,2]
[399417652,1766337034142,-320.0232308,0.00011285,2]
[399417653,1766337034153,-160.0,0.00011468,2]
[399417654,1766337034164,-1041.66666667,0.00011468,2]
[399417655,1766337034174,-317.3156704,0.00011507,2]
[399417656,1766337034184,-153.0,0.00011507,2]
[399417657,1766337034194,-250.0,0.00011653,2]
[399417658,1766337034204,-191.74191781,0.00011729,2]
[399417659,1766337034214,-864.0,0.00011816,2]
[399417660,1766337034223,-424.22956092,0.000119,2]
[399417661,1766337034233,-949.0,0.00012,2]
[399417662,1766337034243,-500.0,0.00012,2]
[399417663,1766337034252,-153.0,0.00012,2]
[399417664,1766337034263,-40242.4999999,0.00012078,2]
[399417665,1766337034272,-2160.0,0.00012194,2]
[399417666,1766337034282,-1362.0,0.00012194,2]
[399417667,1766337034292,-633.0,0.00012194,2]
[399417668,1766337034302,-415.0,0.00012229,2]
[399417669,1766337034312,-415.0,0.00012229,2]
[399417670,1766337034323,-786.01,0.00012329,2]
[399417671,1766337034333,-655.01,0.00012329,2]
[399417672,1766337034344,-545.84,0.00012329,2]
[399417673,1766337034354,-454.87,0.00012329,2]
[399417674,1766337034364,-379.05,0.00012329,2]
[399417675,1766337034373,-315.88,0.00012329,2]
[399417676,1766337034383,-263.23,0.00012329,2]
[399417677,1766337034392,-219.36,0.00012329,2]
[399417678,1766337034402,-182.8,0.00012329,2]
[399417679,1766337034412,-152.33,0.00012329,2]
[399417680,1766337034421,-761.7,0.00012329,2]
[399417681,1766337034431,-153.0,0.00012329,2]
[399417682,1766337034441,-153.0,0.00012329,2]
[399417683,1766337034451,-153.0,0.00012329,2]
[399417684,1766337034460,-153.0,0.00012329,2]
[399417685,1766337034469,-153.0,0.00012329,2]
[399417686,1766337034479,-153.0,0.00012329,2]
[399417687,1766337034488,-153.0,0.00012329,2]
[399417688,1766337034498,-153.0,0.00012329,2]
[399417689,1766337034508,-153.0,0.00012329,2]
[399417690,1766337034518,-153.0,0.00012329,2]
[399417691,1766337034528,-153.0,0.00012329,2]
[399417692,1766337034538,-153.0,0.00012329,2]
[399417693,1766337034547,-153.0,0.00012329,2]
[399417694,1766337034557,-153.0,0.00012329,2]
[399417695,1766337034567,-153.0,0.00012329,2]
[399417696,1766337034576,-153.0,0.00012329,2]
[399417697,1766337034586,-153.0,0.00012329,2]
[399417698,1766337034596,-153.0,0.00012329,2]
[399417699,1766337034605,-153.0,0.00012329,2]
[399417700,1766337034615,-153.0,0.00012329,2]
[399417701,1766337034624,-153.0,0.00012329,2]
[399417702,1766337034633,-153.0,0.00012329,2]
[399417703,1766337034643,-153.0,0.00012329,2]
[399417704,1766337034652,-155.4900332,0.00012329,2]
[399417705,1766337034661,-153.0,0.00012329,2]
[399417706,1766337034671,-153.0,0.00012329,2]
[399417707,1766337034681,-150.0,0.00012335,2]
[399417708,1766337034690,-150.0,0.0001236,2]
[399417709,1766337034700,-11626.49567054,0.000125,2]
[399417710,1766337034709,-521.60110482,0.00012819,2]
[399417711,1766337034724,-608.00422335,0.00012856,2]
[399417712,1766337034738,-21265.98568236,0.000129,2]
[399417713,1766337034748,-21265.98568229,0.000129,2]
[399417714,1766337034759,-313.18501203,0.00012902,2]
[399417715,1766337034775,-1000.0,0.00012998,2]
[399417716,1766337034785,-156.18692076,0.00013159,2]
[399417717,1766337034795,-10000.0,0.00013173,2]
[399417718,1766337034806,-370.52827283,0.00013197,7]
[399417719,1766337034817,-500.0,0.00013273,2]
[399417720,1766337034827,-518.54128155,0.00013273,2]
[399417721,1766337034837,-500.0,0.00013273,2]
[399417722,1766337034847,-500.0,0.00013273,2]
[399417723,1766337034858,-500.00538589,0.00013273,2]
[399417724,1766337034868,-500.0,0.00013273,2]
[399417725,1766337034879,-500.0,0.00013273,2]
[399417726,1766337034889,-500.0,0.00013273,2]
[399417727,1766337034899,-500.0,0.00013273,2]
[399417729,1766337034909,-500.0,0.00013273,2]
[399417730,1766337034920,-500.0,0.00013273,2]
[399417731,1766337034931,-500.0,0.00013273,2]
[399417732,1766337034941,-500.0,0.00013273,2]
[399417733,1766337034951,-500.0,0.00013273,2]
[399417734,1766337034961,-500.0,0.00013273,2]
[399417735,1766337034971,-500.0,0.00013273,2]
[399417736,1766337034981,-500.0,0.00013273,2]
[399417737,1766337034992,-500.0,0.00013273,2]
[399417738,1766337035003,-500.0,0.00013273,2]
[399417739,1766337035013,-500.0,0.00013273,2]
[399417740,1766337035023,-220.16524816,0.00013273,2]
[399417741,1766337035032,-500.0,0.00013273,2]
[399417742,1766337035043,-500.0,0.00013273,2]
[399417743,1766337035053,-500.0,0.00013273,2]
[399417744,1766337035065,-500.0,0.00013273,2]
[399417745,1766337035074,-500.0,0.00013273,2]
[399417746,1766337035084,-500.0,0.00013273,2]
[399417747,1766337035094,-500.0,0.00013273,2]
[399417748,1766337035104,-291.69745447,0.00013273,2]
[399417749,1766337035114,-500.0,0.00013273,2]
[399417750,1766337035124,-500.0,0.00013273,2]
[399417751,1766337035134,-500.0,0.00013273,2]
[399417752,1766337035144,-500.0,0.00013273,2]
[399417753,1766337035155,-500.0,0.00013273,2]
[399417754,1766337035172,-500.0,0.00013273,2]
[399417755,1766337035189,-500.0,0.00013273,2]
[399417756,1766337035200,-500.0,0.00013273,2]
[399417757,1766337035210,-500.0,0.00013273,2]
[399417758,1766337035220,-500.0,0.00013273,2]
[399417759,1766337035231,-500.0,0.00013273,2]
[399417760,1766337035243,-500.0,0.00013273,2]
[399417761,1766337035253,-500.0,0.00013273,2]
[399417762,1766337035270,-168.26353926,0.00013273,2]
[399417763,1766337035289,-500.0,0.00013273,2]
[399417764,1766337035307,-500.0,0.00013273,2]
[399417765,1766337035317,-500.0,0.00013273,2]
[399417766,1766337035327,-500.0,0.00013273,2]
[399417767,1766337035337,-260.92047759,0.00013273,2]
[399417768,1766337035346,-501.01189246,0.00013273,2]
[399417769,1766337035356,-418.74946938,0.00013273,2]
[399417770,1766337035367,-500.0,0.00013273,2]
[399417771,1766337035378,-500.0,0.00013273,2]
[399417772,1766337035388,-500.0,0.00013273,2]
[399417773,1766337035399,-40242.4999999,0.00013423,2]
[399417774,1766337035409,-10000.0,0.0001354,2]
[399417775,1766337035420,-167.5133977,0.00013663,2]
[399417776,1766337035434,-300.0,0.00013673,2]
[399417777,1766337035444,-500.0,0.00013698,2]
[399417778,1766337035454,-500.0,0.00013698,2]
[399417779,1766337035467,-500.0,0.00013698,2]
[399417780,1766337035477,-500.0,0.00013698,2]
[399417781,1766337035487,-500.0,0.00013698,2]
[399417782,1766337035496,-362.84,0.00013698,2]
[399417783,1766337035506,-500.0,0.00013698,2]
[399417784,1766337035516,-500.0,0.00013698,2]
[399417785,1766337035526,-500.0,0.00013698,2]
[399417786,1766337035535,-500.0,0.00013698,2]
[399417787,1766337035545,-478.11818114,0.00013698,2]
[399417788,1766337035555,-500.0,0.00013698,2]
[399417789,1766337035565,-419.01,0.00013698,2]
[399417790,1766337035576,-500.0,0.00013698,2]
[399417791,1766337035586,-500.0,0.00013698,2]
[399417792,1766337035596,-500.0,0.00013698,2]
[399417793,1766337035606,-500.0,0.00013698,2]
[399417794,1766337035616,-500.0,0.00013698,2]
[399417795,1766337035626,-500.0,0.00013698,2]
[399417796,1766337035636,-459.32,0.00013698,2]
[399417797,1766337035646,-1129.69,0.00013698,2]
[399417798,1766337035656,-1129.69,0.00013698,2]
[399417799,1766337035666,-1129.69,0.00013698,2]
[399417800,1766337035676,-1129.69,0.00013698,2]
[399417802,1766337036017,-1129.69,0.00013698,2]
[399417803,1766337036027,-1129.69,0.00013698,2]
[399417804,1766337036035,-1129.69,0.00013698,2]
[399417805,1766337036044,-1129.69,0.00013698,2]
[399417806,1766337036054,-1129.69,0.00013698,2]
[399417807,1766337036063,-1129.69,0.00013698,2]
[399417808,1766337036072,-1129.69,0.00013698,2]
[399417809,1766337036082,-1129.69,0.00013698,2]
[399417810,1766337036091,-1129.69,0.00013698,2]
[399417811,1766337036102,-1129.69,0.00013698,2]
[399417812,1766337036111,-1129.69,0.00013698,2]
[399417813,1766337036120,-1129.69,0.00013698,2]
[399417814,1766337036130,-1129.69,0.00013698,2]
[399417815,1766337036139,-1129.69,0.00013698,2]
[399417816,1766337036148,-1129.69,0.00013698,2]
[399417817,1766337036158,-1129.69,0.00013698,2]
[399417818,1766337036168,-1129.69,0.00013698,2]
[399417819,1766337036177,-1129.69,0.00013698,2]
[399417820,1766337036187,-1129.69,0.00013698,2]
[399417821,1766337036196,-1129.8,0.00013698,2]
[399417822,1766337036206,-504.91269952,0.00013698,2]
[399417823,1766337036215,-503.65372294,0.00013698,2]
[399417824,1766337036225,-510.00081651,0.00013698,2]
[399417825,1766337036234,-500.0,0.00013698,2]
[399417826,1766337036244,-500.0,0.00013698,2]
[399417827,1766337036253,-500.0,0.00013698,2]
[399417828,1766337036262,-500.0,0.00013698,2]
[399417829,1766337036271,-500.0,0.00013698,2]
[399417830,1766337036281,-500.0,0.00013698,2]
[399417831,1766337036290,-500.0,0.00013698,2]
[399417832,1766337036299,-232.0911528,0.00013698,2]
[399417833,1766337036309,-500.0,0.00013698,2]
[399417834,1766337036319,-500.0,0.00013698,2]
[399417835,1766337036329,-500.0,0.00013698,2]
[399417836,1766337036338,-500.0,0.00013698,2]
[399417837,1766337036348,-500.0,0.00013698,2]
[399417838,1766337036357,-500.0,0.00013698,2]
[399417839,1766337036367,-391.4515662,0.00013698,2]
[399417840,1766337036376,-500.0,0.00013698,2]
[399417841,1766337036386,-500.0,0.00013698,2]
[399417842,1766337036395,-500.0,0.00013698,2]
[399417843,1766337036405,-500.0,0.00013698,2]
[399417844,1766337036414,-500.0,0.00013698,2]
[399417845,1766337036424,-500.0,0.00013698,2]
[399417846,1766337036433,-500.0,0.00013698,2]
[399417847,1766337036443,-500.0,0.00013698,2]
[399417848,1766337036452,-500.0,0.00013698,2]
[399417849,1766337036461,-500.0,0.00013698,2]
[399417850,1766337036471,-500.0,0.00013698,2]
[399417851,1766337036480,-500.0,0.00013698,2]
[399417852,1766337036490,-500.0,0.00013698,2]
[399417853,1766337036499,-500.0,0.00013698,2]
[399417854,1766337036509,-500.0,0.00013698,2]
[399417855,1766337036518,-500.0,0.00013698,2]
[399417856,1766337036527,-500.0,0.00013698,2]
[399417857,1766337036536,-500.0,0.00013698,2]
[399417858,1766337036545,-517.70170527,0.00013698,2]
[399417859,1766337036554,-500.0,0.00013698,2]
[399417860,1766337036563,-500.0,0.00013698,2]
[399417861,1766337036573,-500.0,0.00013698,2]
[399417862,1766337036583,-500.0,0.00013698,2]
[399417863,1766337036592,-329.21538845,0.00013698,2]
[399417864,1766337036601,-500.0,0.00013698,2]
[399417865,1766337036611,-500.0,0.00013698,2]
[399417866,1766337036620,-500.0,0.00013698,2]
[399417867,1766337036629,-500.0,0.00013698,2]
[399417868,1766337036639,-500.0,0.00013698,2]
[399417869,1766337036648,-500.0,0.00013698,2]
[399417870,1766337036657,-405.05777825,0.00013698,2]
[399417871,1766337036667,-500.0,0.00013698,2]
[399417872,1766337036676,-500.0,0.00013698,2]
[399417873,1766337036685,-550.50803095,0.00013698,2]
[399417874,1766337036695,-554.36394736,0.00013698,2]
[399417875,1766337036705,-500.0,0.00013698,2]
[399417876,1766337036715,-500.0,0.00013698,2]
[399417877,1766337036726,-500.0,0.00013698,2]
[399417878,1766337036735,-500.0,0.00013698,2]
[399417879,1766337036745,-500.0,0.00013698,2]
[399417880,1766337036754,-500.0,0.00013698,2]
[399417881,1766337036764,-500.0,0.00013698,2]
[399417882,1766337036777,-500.0,0.00013698,2]
[399417883,1766337036786,-500.0,0.00013698,2]
[399417884,1766337036795,-500.0,0.00013698,2]
[399417885,1766337036805,-500.0,0.00013698,2]
[399417886,1766337036815,-437.01053308,0.00013698,2]
[399417887,1766337036825,-500.0,0.00013698,2]
[399417888,1766337036834,-505.87752958,0.00013698,2]
[399417889,1766337036845,-532.96268676,0.00013698,2]
[399417890,1766337036855,-235.60989908,0.00013698,2]
[399417891,1766337036864,-500.0,0.00013698,2]
[399417892,1766337036874,-293.3,0.00013698,2]
[399417893,1766337036883,-500.0,0.00013698,2]
[399417894,1766337036892,-280.11016644,0.00013698,2]
[399417895,1766337036902,-501.42823743,0.00013698,2]
[399417896,1766337036911,-500.65957387,0.00013698,2]
[399417897,1766337036921,-500.0,0.00013698,2]
[399417898,1766337036930,-500.0,0.00013698,2]